bitfinex-derivatives/quotes_BTCF0:USTF0_20250509
["timestamp","ask_amount","ask_price","bid_price","bid_amount"]
[1746753061075,0.7073098,102870.0,102860.0,0.22926529]
[1746753061277,0.8673098,102870.0,102860.0,0.06551659]
[1746753061484,0.8673098,102870.0,102860.0,0.07642078]
[1746753061887,0.8673098,102870.0,102860.0,0.07942078]
[1746753062187,0.8673098,102870.0,102860.0,0.06851659]
[1746753062576,0.8683098,102870.0,102860.0,0.06951659]
[1746753063582,0.8683098,102870.0,102860.0,0.26396529]
[1746753063583,0.8381098,102870.0,102860.0,0.26396529]
[1746753063888,0.8063098,102870.0,102860.0,0.60454713]
[1746753064189,0.8063098,102870.0,102860.0,0.30666735]
[1746753065188,0.8063098,102870.0,102860.0,0.29576529]
[1746753066188,0.8363098,102870.0,102860.0,0.10131659]
[1746753066387,0.8684098,102870.0,102860.0,0.29576529]
[1746753066784,0.8684098,102870.0,102860.0,0.10131659]
[1746753067085,0.9001098,102870.0,102860.0,0.29576529]
[1746753068189,0.9001098,102870.0,102860.0,0.30667559]
[1746753068687,0.161,102870.0,102860.0,1.29625743]
[1746753068890,0.161,102870.0,102860.0,1.39347343]
[1746753069192,0.161,102870.0,102860.0,2.88256313]
[1746753069488,0.7448822,102900.0,102890.0,0.194392]
[1746753069688,0.7754822,102900.0,102890.0,0.194392]
[1746753069877,0.7754822,102900.0,102890.0,0.288592]
[1746753070277,0.9354822,102900.0,102890.0,0.29954553]
[1746753070483,0.94538437,102900.0,102890.0,0.29954553]
[1746753070685,1.05416621,102900.0,102890.0,0.01095353]
[1746753070898,1.08566621,102900.0,102890.0,0.01095353]
[1746753071487,1.08866621,102900.0,102890.0,0.01095353]
[1746753071692,1.09266621,102900.0,102890.0,0.01095353]
[1746753071884,0.194392,102890.0,102880.0,0.357213]
[1746753072083,0.354392,102890.0,102880.0,0.43299484]
[1746753072281,0.354392,102890.0,102880.0,0.45091467]
[1746753072482,0.354392,102890.0,102880.0,0.15051962]
[1746753072683,0.88817384,102890.0,102880.0,0.15051962]
[1746753072885,0.88817384,102890.0,102880.0,0.06562897]
[1746753073090,0.89017384,102890.0,102880.0,0.06662897]
[1746753073284,0.89017384,102890.0,102880.0,0.05969232]
[1746753073786,0.92217384,102890.0,102880.0,0.05969232]
[1746753073994,0.92217384,102890.0,102880.0,0.02709232]
[1746753074293,0.92317384,102890.0,102880.0,0.01610935]
[1746753075285,1.01305384,102890.0,102880.0,0.01610935]
[1746753084101,1.01305384,102890.0,102880.0,5e-08]
[1746753086306,0.1944676,102850.0,102840.0,0.00829488]
[1746753086603,0.75412944,102850.0,102840.0,0.00097237]
[1746753086800,0.84712944,102850.0,102840.0,0.00097237]
[1746753087000,0.93560944,102850.0,102840.0,0.00097237]
[1746753087304,1.09560944,102850.0,102840.0,0.00097237]
[1746753087506,1.09660944,102850.0,102840.0,0.00097237]
[1746753088000,0.9878276,102850.0,102840.0,0.00097237]
[1746753088706,0.9878276,102850.0,102840.0,0.00497237]
[1746753089408,0.9878276,102850.0,102840.0,0.06747237]
[1746753090205,1.09660944,102850.0,102840.0,0.06747237]
[1746753091308,1.09660944,102850.0,102840.0,0.07837985]
[1746753093306,0.4484676,102850.0,102840.0,0.27286635]
[1746753093502,0.4743476,102850.0,102840.0,0.27979028]
[1746753093702,0.8351476,102850.0,102840.0,0.08530378]
[1746753093914,0.8677476,102850.0,102840.0,0.08530378]
[1746753094208,0.8701776,102850.0,102840.0,0.08530378]
[1746753094511,0.8701776,102850.0,102840.0,0.08532878]
[1746753094815,0.8701776,102850.0,102840.0,0.27981528]
[1746753095107,0.4767776,102850.0,102840.0,0.32981528]
[1746753095307,0.8375776,102850.0,102840.0,0.08532878]
[1746753095510,0.8689776,102850.0,102840.0,0.08532878]
[1746753096212,0.8689776,102850.0,102840.0,0.10053252]
[1746753096513,0.8689776,102850.0,102840.0,0.10087626]
[1746753098113,0.7808976,102850.0,102840.0,0.29536276]
[1746753098416,0.3578976,102850.0,102840.0,0.7541446]
[1746753098720,0.3578976,102850.0,102840.0,0.64536276]
[1746753099016,0.3887976,102850.0,102840.0,0.64536276]
[1746753099912,0.3887976,102850.0,102840.0,0.62536276]
[1746753100215,0.3578976,102850.0,102840.0,0.62536276]
[1746753101112,0.3578976,102850.0,102840.0,0.63536276]
[1746753101615,0.3894976,102850.0,102840.0,0.63536276]
[1746753101815,0.3578976,102850.0,102840.0,0.63536276]
[1746753102419,0.3578976,102850.0,102840.0,0.44536276]
[1746753102818,0.3578976,102850.0,102840.0,0.61536276]
[1746753103018,0.3578976,102850.0,102840.0,0.44536276]
[1746753103514,0.3578976,102850.0,102840.0,0.44557465]
[1746753103716,0.3896976,102850.0,102840.0,0.61557465]
[1746753103917,0.3896976,102850.0,102840.0,0.61571117]
[1746753106318,0.85927944,102850.0,102840.0,0.10122467]
[1746753106519,0.88947944,102850.0,102840.0,0.10122467]
[1746753106713,0.91987944,102850.0,102840.0,0.10122467]
[1746753107810,0.91987944,102850.0,102840.0,0.03872467]
[1746753108713,0.91987944,102850.0,102840.0,0.03869827]
[1746753109209,0.91987944,102850.0,102840.0,0.03137163]
[1746753109411,0.91987944,102850.0,102840.0,0.03879157]
[1746753110320,0.91987944,102850.0,102840.0,0.03137163]
[1746753110522,0.91987944,102850.0,102840.0,0.0313789]
[1746753112718,0.91987944,102850.0,102840.0,0.03135767]
[1746753114220,1.00795944,102850.0,102840.0,0.03135767]
[1746753114424,1.09531944,102850.0,102840.0,0.09888579]
[1746753117226,0.8991776,102850.0,102840.0,0.29337229]
[1746753117423,0.8385776,102850.0,102840.0,0.29337229]
[1746753117619,0.4777776,102850.0,102840.0,0.74449363]
[1746753117925,0.8385776,102850.0,102840.0,0.38369363]
[1746753118539,0.4777776,102850.0,102840.0,0.38369363]
[1746753119119,0.4777776,102850.0,102840.0,0.58369363]
[1746753119319,0.8385776,102850.0,102840.0,0.38369363]
[1746753119526,0.4777776,102850.0,102840.0,0.38369363]
[1746753120123,0.8385776,102850.0,102840.0,0.38369363]
[1746753120522,0.8688776,102850.0,102840.0,0.38369363]
[1746753122327,0.8385776,102850.0,102840.0,0.38369363]
[1746753122532,0.8385776,102850.0,102840.0,0.58369363]
[1746753122738,0.3896976,102850.0,102840.0,0.58369363]
[1746753123036,0.3578976,102850.0,102840.0,0.58369363]
[1746753123527,0.7512976,102850.0,102840.0,0.38369363]
[1746753123733,0.7512976,102850.0,102840.0,0.58369363]
[1746753123734,0.3904976,102850.0,102840.0,0.58369363]
[1746753124232,0.86007944,102850.0,102840.0,0.18920664]
[1746753124430,0.92197944,102850.0,102840.0,0.12920664]
[1746753124728,0.92197944,102850.0,102840.0,0.32369314]
[1746753125032,0.8131976,102850.0,102840.0,0.32369314]
[1746753125229,0.8131976,102850.0,102840.0,0.12920664]
[1746753125625,0.8131976,102850.0,102840.0,0.32369314]
[1746753125932,0.7512976,102850.0,102840.0,0.32369314]
[1746753126131,0.19603,102850.0,102840.0,0.98327498]
[1746753126325,0.19603,102850.0,102840.0,1.17327498]
[1746753126326,0.16343,102850.0,102840.0,1.17327498]
[1746753126628,0.3578976,102850.0,102840.0,1.17327498]
[1746753126832,0.35303294,102850.0,102840.0,1.17327498]
[1746753127331,0.15856534,102850.0,102840.0,1.17327498]
[1746753127535,0.15856534,102850.0,102840.0,1.53407498]
[1746753127833,0.15856534,102850.0,102840.0,1.63130698]
[1746753128138,0.35303294,102850.0,102840.0,3.11529314]
[1746753128335,0.35303294,102850.0,102840.0,2.86327498]
[1746753128536,0.35303294,102850.0,102840.0,2.73327498]
[1746753128836,0.35303294,102850.0,102840.0,2.84327498]
[1746753129229,0.35303294,102850.0,102840.0,2.51327498]
[1746753129430,0.38373294,102850.0,102840.0,1.04449314]
[1746753130136,0.38373294,102850.0,102840.0,0.87449314]
[1746753130336,0.41463294,102850.0,102840.0,0.87449314]
[1746753130538,0.41363294,102850.0,102840.0,0.87449314]
[1746753130837,0.41463294,102850.0,102840.0,0.87149314]
[1746753131035,0.41463294,102850.0,102840.0,0.86009073]
[1746753131240,0.41463294,102850.0,102840.0,0.87172843]
[1746753131431,0.41463294,102850.0,102840.0,0.87172842]
[1746753132739,0.41463294,102850.0,102840.0,0.51092842]
[1746753133039,0.41463294,102850.0,102840.0,0.51090375]
[1746753134940,0.41463294,102850.0,102840.0,0.50990375]
[1746753135135,0.41463294,102850.0,102840.0,0.68990375]
[1746753135441,0.41563294,102850.0,102840.0,1.05070375]
[1746753136042,0.41563294,102850.0,102840.0,0.87070375]
[1746753136337,0.41563294,102850.0,102840.0,1.02930189]
[1746753136543,0.41563294,102850.0,102840.0,1.04064927]
[1746753137037,0.15956534,102850.0,102840.0,1.14943111]
[1746753138239,0.15500519,102850.0,102840.0,1.41666311]
[1746753138447,0.15500519,102850.0,102840.0,1.52544495]
[1746753138646,0.0332,102870.0,102860.0,0.1944487]
[1746753138942,0.3734321,102880.0,102870.0,0.1944298]
[1746753139247,0.4848261,102880.0,102870.0,0.86601646]
[1746753139829,0.4848261,102880.0,102870.0,0.8812202]
[1746753140240,0.3544171,102880.0,102870.0,0.99000204]
[1746753140439,0.16,102880.0,102870.0,1.25720604]
[1746753140641,0.16,102880.0,102870.0,1.34572604]
[1746753141145,0.169,102880.0,102870.0,1.34672604]
[1746753141546,0.3574109,102880.0,102870.0,1.34672604]
[1746753141842,0.3574109,102880.0,102870.0,1.23820578]
[1746753142042,0.3554109,102880.0,102870.0,1.34798762]
[1746753142245,0.3554109,102880.0,102870.0,1.34801874]
[1746753142437,0.161,102880.0,102870.0,1.34801874]
[1746753143741,0.161,102880.0,102870.0,1.62680058]
[1746753144046,0.161,102880.0,102870.0,1.51801874]
[1746753144341,0.161,102880.0,102870.0,1.4092369]
[1746753144545,0.161,102880.0,102870.0,1.51801874]
[1746753144740,0.161,102880.0,102870.0,3.01801874]
[1746753145138,0.161,102880.0,102870.0,3.01817487]
[1746753145445,0.161,102880.0,102870.0,3.18867487]
[1746753146540,0.3554109,102880.0,102870.0,3.18867487]
[1746753146746,0.161,102880.0,102870.0,3.18867487]
[1746753146950,0.3554109,102880.0,102870.0,2.98208903]
[1746753147243,0.3859109,102880.0,102870.0,2.98208903]
[1746753147447,0.3859109,102880.0,102870.0,3.09087087]
[1746753147746,0.1915,102880.0,102870.0,3.09098153]
[1746753148244,0.3859109,102880.0,102870.0,3.09098153]
[1746753148447,0.3554109,102880.0,102870.0,3.09098153]
[1746753148746,0.3554109,102880.0,102870.0,3.09107635]
[1746753149448,0.161,102880.0,102870.0,3.09107635]
[1746753150448,0.161,102880.0,102870.0,3.09109672]
[1746753151047,0.161,102880.0,102870.0,3.19987856]
[1746753151447,0.161,102880.0,102870.0,3.09109672]
[1746753152351,0.194,102880.0,102870.0,3.09109672]
[1746753153053,0.2271,102880.0,102870.0,3.09109673]
[1746753153256,0.2271,102880.0,102870.0,3.09101282]
[1746753154455,0.2271,102880.0,102870.0,2.98223098]
[1746753154651,0.4215109,102880.0,102870.0,3.09045282]
[1746753154852,0.2271,102880.0,102870.0,3.00309282]
[1746753155050,0.2271,102880.0,102870.0,3.09045282]
[1746753155255,0.4215109,102880.0,102870.0,2.47431098]
[1746753155446,0.4521109,102880.0,102870.0,2.64431098]
[1746753155647,0.4521109,102880.0,102870.0,2.28351098]
[1746753155958,0.4521109,102880.0,102870.0,0.72201098]
[1746753156148,0.4521109,102880.0,102870.0,0.60171098]
[1746753156551,0.4521109,102880.0,102870.0,0.40728118]
[1746753156856,0.81089274,102880.0,102870.0,0.20728118]
[1746753157248,0.4521109,102880.0,102870.0,0.40171098]
[1746753157551,0.4521109,102880.0,102870.0,0.03675143]
[1746753158756,0.56089274,102880.0,102870.0,0.03675143]
[1746753159257,0.56089274,102880.0,102870.0,0.23118123]
[1746753159756,0.4521109,102880.0,102870.0,0.23118123]
[1746753162365,0.8129109,102880.0,102870.0,0.23118123]
[1746753162759,0.92169274,102880.0,102870.0,0.03675143]
[1746753163061,0.92169274,102880.0,102870.0,0.02857102]
[1746753163461,0.1944487,102860.0,102850.0,0.2916964]
[1746753163665,0.5552487,102860.0,102850.0,0.29945579]
[1746753163876,0.6179487,102860.0,102850.0,0.29945579]
[1746753164169,0.7779487,102860.0,102850.0,0.29945579]
[1746753164573,0.7779487,102860.0,102850.0,0.2996263]
[1746753164873,0.7779487,102860.0,102850.0,0.2510099]
[1746753165061,0.88673054,102860.0,102850.0,0.0079299]
[1746753165763,1.24753054,102860.0,102850.0,0.0079299]
[1746753166158,1.33665054,102860.0,102850.0,0.0079299]
[1746753166472,1.43387454,102860.0,102850.0,0.00878861]
[1746753166658,0.1944676,102850.0,102840.0,0.00097237]
[1746753166862,0.81490944,102850.0,102840.0,0.0087601]
[1746753167264,0.97490944,102850.0,102840.0,0.0087601]
[1746753167873,0.97690944,102850.0,102840.0,0.0087601]
[1746753168172,0.97790944,102850.0,102840.0,0.0087601]
[1746753169470,0.7817676,102850.0,102840.0,0.2032466]
[1746753169670,0.7817676,102850.0,102840.0,0.4432466]
[1746753169671,0.5083276,102850.0,102840.0,0.4432466]
[1746753169974,0.1942,102850.0,102840.0,1.16591014]
[1746753170470,0.1942,102850.0,102840.0,1.42421014]
[1746753170471,0.163,102850.0,102840.0,1.42421014]
[1746753170862,0.1947,102850.0,102840.0,2.92421014]
[1746753171268,0.3891676,102850.0,102840.0,2.83641014]
[1746753171470,0.4217676,102850.0,102840.0,2.83641014]
[1746753171974,0.4217676,102850.0,102840.0,2.7276283]
[1746753172174,0.3891676,102850.0,102840.0,1.33641014]
[1746753172370,0.163,102850.0,102840.0,1.33641014]
[1746753172563,0.163,102850.0,102840.0,3.04242398]
[1746753172975,0.3574676,102850.0,102840.0,2.83634564]
[1746753173275,0.3574676,102850.0,102840.0,2.59634564]
[1746753173475,0.3875676,102850.0,102840.0,2.59647234]
[1746753173976,0.4205676,102850.0,102840.0,2.59647234]
[1746753174784,0.3875676,102850.0,102840.0,2.59647234]
[1746753175273,0.3875676,102850.0,102840.0,2.63642031]
[1746753175579,0.3875676,102850.0,102840.0,2.66258897]
[1746753176680,0.1931,102850.0,102840.0,2.66258897]
[1746753176874,0.3875676,102850.0,102840.0,2.66258897]
[1746753177178,0.3875676,102850.0,102840.0,2.6626069]
[1746753178178,0.3875676,102850.0,102840.0,1.05382506]
[1746753178477,0.4193676,102850.0,102840.0,1.01382506]
[1746753178873,0.4193676,102850.0,102840.0,1.0138792]
[1746753179969,0.4193676,102850.0,102840.0,0.3959927]
[1746753180286,0.1945054,102830.0,102820.0,0.01032312]
[1746753180468,0.6426654,102830.0,102820.0,0.20484752]
[1746753180776,0.7079654,102830.0,102820.0,0.07392312]
[1746753181275,0.8679654,102830.0,102820.0,0.07392312]
[1746753181875,0.87769559,102830.0,102820.0,0.07392312]
[1746753182077,0.87769559,102830.0,102820.0,0.07692312]
[1746753182378,0.98747743,102830.0,102820.0,0.00691758]
[1746753183377,0.79133559,102830.0,102820.0,0.00691758]
[1746753183582,0.87869559,102830.0,102820.0,0.03711758]
[1746753183880,0.98747743,102830.0,102820.0,0.03711758]
[1746753184077,0.98990743,102830.0,102820.0,0.03711758]
[1746753184278,0.82990743,102830.0,102820.0,0.00691758]
[1746753185074,0.98990743,102830.0,102820.0,0.00691758]
[1746753185780,0.90254743,102830.0,102820.0,0.00691758]
[1746753185976,1.07746743,102830.0,102820.0,0.00691758]
[1746753187986,1.17471943,102830.0,102820.0,0.00691758]
[1746753188875,1.17471943,102830.0,102820.0,8e-08]
[1746753190178,0.1945244,102820.0,102810.0,0.00097266]
[1746753190379,0.76110624,102820.0,102810.0,0.00097266]
[1746753191287,0.92110624,102820.0,102810.0,0.00097266]
[1746753191986,1.09606624,102820.0,102810.0,0.00097266]
[1746753192185,1.10506624,102820.0,102810.0,0.02308922]
[1746753192687,1.11406624,102820.0,102810.0,0.02408922]
[1746753193983,1.11406624,102820.0,102810.0,0.01700954]
[1746753194482,1.0052844,102820.0,102810.0,0.01700954]
[1746753194687,1.11406624,102820.0,102810.0,0.01700954]
[1746753194986,1.0052844,102820.0,102810.0,0.01700954]
[1746753195181,1.11406624,102820.0,102810.0,0.01700954]
[1746753196387,1.11406624,102820.0,102810.0,0.04910954]
[1746753197181,0.95406624,102820.0,102810.0,0.04910954]
[1746753198193,0.95406624,102820.0,102810.0,0.28406207]
[1746753198194,0.77910624,102820.0,102810.0,0.28406207]
[1746753198386,0.7254444,102820.0,102810.0,0.42524554]
[1746753198687,0.3332444,102820.0,102810.0,1.13604554]
[1746753199082,0.7254444,102820.0,102810.0,0.4664637]
[1746753199576,0.6940444,102820.0,102810.0,0.4664637]
[1746753200185,0.6940444,102820.0,102810.0,0.6264637]
[1746753200995,0.6940444,102820.0,102810.0,0.7964637]
[1746753201183,0.7259444,102820.0,102810.0,0.4664637]
[1746753201379,0.7259444,102820.0,102810.0,0.1742204]
[1746753201692,0.86612624,102820.0,102810.0,0.0242204]
[1746753201890,0.86612624,102820.0,102810.0,0.0551204]
[1746753202083,0.7573444,102820.0,102810.0,0.0869204]
[1746753202479,0.7573444,102820.0,102810.0,0.2814637]
[1746753202684,0.7259444,102820.0,102810.0,0.3129637]
[1746753203391,0.7229444,102820.0,102810.0,0.3129637]
[1746753203591,0.6910444,102820.0,102810.0,0.3129637]
[1746753203789,0.6910444,102820.0,102810.0,0.42174554]
[1746753203986,0.3738,102820.0,102810.0,0.60174554]
[1746753204291,0.013,102820.0,102810.0,1.12132738]
[1746753204491,0.013,102820.0,102810.0,1.31163049]
[1746753204687,0.011,102820.0,102810.0,1.31163049]
[1746753204893,0.011,102820.0,102810.0,3.23213049]
[1746753205089,0.1969354,102830.0,102820.0,0.30330624]
[1746753205291,0.1969354,102830.0,102820.0,1.08135709]
[1746753206297,0.2009354,102830.0,102820.0,1.24135709]
[1746753206795,0.00643,102830.0,102820.0,1.33860909]
[1746753206999,0.74969845,102840.0,102830.0,0.1945054]
[1746753207194,0.66217845,102840.0,102830.0,0.89360121]
[1746753207495,0.2431285,102840.0,102830.0,1.25440121]
[1746753207691,0.2431285,102840.0,102830.0,1.43993809]
[1746753207898,0.6528237,102850.0,102840.0,0.1944865]
[1746753208082,0.6528237,102850.0,102840.0,0.89933137]
[1746753208988,0.5555841,102850.0,102840.0,0.89933137]
[1746753209192,0.0003,102850.0,102840.0,1.60930956]
[1746753209390,0.0003,102850.0,102840.0,1.79402156]
[1746753209586,0.1944298,102870.0,102860.0,0.1944487]
[1746753209789,0.3741414,102880.0,102870.0,0.1944298]
[1746753210096,0.1954277,102880.0,102870.0,0.57136878]
[1746753210300,0.20513418,102880.0,102870.0,0.60266878]
[1746753210894,0.001,102880.0,102870.0,1.24225062]
[1746753211290,0.001,102880.0,102870.0,1.40225062]
[1746753211598,0.001,102880.0,102870.0,1.40253943]
[1746753211799,0.007,102880.0,102870.0,1.41099588]
[1746753213494,0.004,102880.0,102870.0,1.41135168]
[1746753214599,0.004,102880.0,102870.0,1.58185168]
[1746753215100,0.004,102880.0,102870.0,1.58212306]
[1746753215598,0.004,102880.0,102870.0,1.67932706]
[1746753215799,0.00272,102890.0,102880.0,0.1944109]
[1746753216098,0.00272,102890.0,102880.0,1.52622899]
[1746753216299,0.00272,102890.0,102880.0,1.62342499]
[1746753216690,0.00272,102890.0,102880.0,1.63846187]
[1746753217098,0.001,102910.0,102900.0,0.1943731]
[1746753217293,0.001,102910.0,102900.0,1.40653303]
[1746753217493,0.1953542,102910.0,102900.0,1.40653303]
[1746753217692,0.1953542,102910.0,102900.0,1.42156991]
[1746753217995,0.001,102910.0,102900.0,1.31278807]
[1746753218201,0.001,102910.0,102900.0,1.58156991]
[1746753218599,0.001,102910.0,102900.0,1.57317295]
[1746753218802,0.001,102910.0,102900.0,1.58288221]
[1746753218995,0.1953542,102910.0,102900.0,1.36531853]
[1746753219299,0.1953542,102910.0,102900.0,1.11330037]
[1746753219602,0.1953542,102910.0,102900.0,0.91635853]
[1746753219803,0.2602542,102910.0,102900.0,1.02514037]
[1746753220200,0.2602542,102910.0,102900.0,0.86514037]
[1746753220698,0.6210542,102910.0,102900.0,0.58585853]
[1746753220904,0.6210542,102910.0,102900.0,0.26878543]
[1746753221198,0.6210542,102910.0,102900.0,0.03588543]
[1746753221400,0.72983604,102910.0,102900.0,0.03588543]
[1746753222097,0.88983604,102910.0,102900.0,0.03588543]
[1746753222296,0.88983604,102910.0,102900.0,0.03619498]
[1746753224007,0.88983604,102910.0,102900.0,0.03617317]
[1746753224808,1.23701204,102910.0,102900.0,0.03617317]
[1746753225301,0.98701204,102910.0,102900.0,0.03617317]
[1746753226500,0.7810542,102910.0,102900.0,0.03617317]
[1746753226809,0.97811604,102910.0,102900.0,0.03617317]
[1746753227902,0.98511604,102910.0,102900.0,0.03617317]
[1746753228611,0.98311604,102910.0,102900.0,0.03517317]
[1746753228808,0.98911604,102910.0,102900.0,0.03617317]
[1746753228999,0.7920542,102910.0,102900.0,0.03617317]
[1746753229200,0.7920542,102910.0,102900.0,0.23054627]
[1746753229506,0.7920542,102910.0,102900.0,0.03619488]
[1746753229906,0.7920542,102910.0,102900.0,0.33934982]
[1746753230203,0.6320542,102910.0,102900.0,0.14497672]
[1746753230410,0.6320542,102910.0,102900.0,0.03619488]
[1746753230605,0.74083604,102910.0,102900.0,0.03619488]
[1746753231005,0.74083604,102910.0,102900.0,0.03622014]
[1746753231309,0.90083604,102910.0,102900.0,0.03622014]
[1746753233105,0.90083604,102910.0,102900.0,0.03600175]
[1746753234302,0.7920542,102910.0,102900.0,0.03600175]
[1746753234507,0.8799342,102910.0,102900.0,0.03600175]
[1746753234705,0.8799342,102910.0,102900.0,0.0356937]
[1746753234904,0.8799342,102910.0,102900.0,0.0670937]
[1746753235105,0.7199342,102910.0,102900.0,0.0356937]
[1746753235304,0.7199342,102910.0,102900.0,0.03568013]
[1746753235616,0.6320542,102910.0,102900.0,0.03568013]
[1746753235816,0.7199342,102910.0,102900.0,0.03568013]
[1746753236310,0.82871604,102910.0,102900.0,0.03568013]
[1746753236511,0.82871604,102910.0,102900.0,0.03513632]
[1746753237015,0.82671604,102910.0,102900.0,0.03513632]
[1746753237313,0.82471604,102910.0,102900.0,0.03513632]
[1746753237519,0.7159342,102910.0,102900.0,0.03491479]
[1746753238117,0.8759342,102910.0,102900.0,0.03491479]
[1746753238416,0.98471604,102910.0,102900.0,0.03491479]
[1746753239216,0.82471604,102910.0,102900.0,0.03491479]
[1746753240218,0.98471604,102910.0,102900.0,0.03491479]
[1746753242012,0.98471604,102910.0,102880.0,0.21229078]
[1746753242013,0.194392,102890.0,102880.0,0.14819078]
[1746753242213,0.75185384,102890.0,102880.0,0.14819078]
[1746753242421,1.17405384,102890.0,102880.0,0.14819078]
[1746753243610,1.17505384,102890.0,102880.0,0.14819078]
[1746753245317,1.33505384,102890.0,102880.0,0.14819078]
[1746753246526,0.1944109,102880.0,102870.0,0.25084723]
[1746753246717,0.6517109,102880.0,102870.0,0.25084723]
[1746753247924,0.6517109,102880.0,102870.0,0.25484723]
[1746753247925,0.6188109,102880.0,102870.0,0.25484723]
[1746753248119,0.72759274,102880.0,102870.0,0.24739078]
[1746753248320,0.72759274,102880.0,102870.0,0.15219078]
[1746753248824,0.81507274,102880.0,102870.0,0.15219078]
[1746753249023,0.91227674,102880.0,102870.0,0.03576178]
[1746753249213,1.07227674,102880.0,102870.0,8e-08]
[1746753249417,0.98479674,102880.0,102870.0,8e-08]
[1746753249619,1.26889858,102880.0,102870.0,8e-08]
[1746753249925,1.16011674,102880.0,102870.0,8e-08]
[1746753250420,1.16111674,102880.0,102860.0,0.00291659]
[1746753250623,0.76041164,102870.0,102860.0,0.00291659]
[1746753251240,1.01762764,102870.0,102860.0,0.00291659]
[1746753251420,1.12640948,102870.0,102860.0,9e-08]
[1746753252124,0.93197968,102870.0,102840.0,0.34220961]
[1746753252322,1.02484944,102850.0,102840.0,0.24780961]
[1746753252730,1.12064944,102850.0,102840.0,0.24780961]
[1746753253726,1.12064944,102850.0,102840.0,0.24980961]
[1746753253921,1.12164944,102850.0,102840.0,0.25280961]
[1746753254129,1.12164944,102850.0,102840.0,0.02119117]
[1746753256228,1.28164944,102850.0,102840.0,0.02119117]
[1746753256627,1.38862842,102850.0,102840.0,7e-08]
[1746753256828,1.38762842,102850.0,102840.0,7e-08]
[1746753257024,1.39662842,102850.0,102840.0,7e-08]
[1746753257335,1.29584658,102850.0,102840.0,7e-08]
[1746753259532,1.19861458,102850.0,102840.0,7e-08]
[1746753259836,1.28605458,102850.0,102840.0,7e-08]
[1746753265841,1.38328658,102850.0,102840.0,7e-08]
[1746753267635,2.22893458,102850.0,102840.0,7e-08]
[1746753267834,2.32616658,102850.0,102840.0,7e-08]
[1746753268547,2.22893458,102850.0,102840.0,7e-08]
[1746753270436,2.22893458,102850.0,102840.0,0.06050007]
[1746753271249,2.17771642,102850.0,102840.0,0.06050007]
[1746753272743,2.09027642,102850.0,102840.0,0.06050007]
[1746753272946,1.94969458,102850.0,102840.0,0.06050007]
[1746753273151,2.09361458,102850.0,102840.0,0.06050007]
[1746753273349,2.08561458,102850.0,102840.0,0.0605]
[1746753273648,2.09161458,102850.0,102840.0,0.0918]
[1746753274551,1.91629458,102850.0,102840.0,0.0918]
[1746753274743,2.09161458,102850.0,102840.0,0.0918]
[1746753275244,0.33354564,102860.0,102840.0,0.0918]
[1746753275445,0.8674925,102860.0,102850.0,0.0627]
[1746753275645,1.06411434,102860.0,102850.0,0.0627]
[1746753275839,0.9553325,102860.0,102850.0,0.0325]
[1746753276044,1.06411434,102860.0,102850.0,0.0325]
[1746753276539,0.9753325,102860.0,102850.0,0.0325]
[1746753276745,1.08411434,102860.0,102850.0,0.0325]
[1746753277151,1.08411434,102860.0,102850.0,0.0335]
[1746753277337,0.9753325,102860.0,102850.0,0.0335]
[1746753277544,0.99663434,102860.0,102850.0,0.0637]
[1746753277742,0.8575525,102860.0,102850.0,0.0637]
[1746753278042,0.8575525,102860.0,102850.0,0.2581676]
[1746753278043,0.8089363,102860.0,102850.0,0.2581676]
[1746753278238,0.7979363,102860.0,102850.0,0.4181676]
[1746753278443,0.45464648,102860.0,102850.0,0.79773919]
[1746753279044,0.45464648,102860.0,102850.0,0.81294183]
[1746753279454,0.45464648,102860.0,102850.0,0.92172367]
[1746753280245,0.45464648,102860.0,102850.0,0.92163115]
[1746753280741,0.44764648,102860.0,102850.0,0.92063115]
[1746753281350,0.43964648,102860.0,102850.0,0.61638171]
[1746753281554,0.55442832,102860.0,102850.0,0.25658171]
[1746753281753,0.61782832,102860.0,102850.0,0.61738171]
[1746753281959,0.61782832,102860.0,102850.0,0.25658171]
[1746753282166,0.61782832,102860.0,102850.0,0.09658171]
[1746753282453,0.50904648,102860.0,102850.0,0.08980705]
[1746753282757,0.51147648,102860.0,102850.0,0.08980705]
[1746753283253,0.62025832,102860.0,102850.0,0.08980705]
[1746753283954,0.98105832,102860.0,102850.0,0.08980705]
[1746753284558,0.89321832,102860.0,102850.0,0.08980705]
[1746753284762,1.06809832,102860.0,102850.0,0.08980705]
[1746753285348,1.06809832,102860.0,102850.0,0.05960705]
[1746753288265,1.06809832,102860.0,102850.0,0.02710705]
[1746753288466,0.3608,102850.0,102790.0,0.61444957]
[1746753288764,0.1945433,102810.0,102800.0,0.0316]
[1746753288971,0.2819833,102810.0,102800.0,0.0316]
[1746753289169,0.6427833,102810.0,102800.0,0.1916]
[1746753289566,0.3127833,102810.0,102800.0,0.1916]
[1746753289765,0.6735833,102810.0,102800.0,0.1946]
[1746753291168,0.6745833,102810.0,102800.0,0.1986]
[1746753291471,0.6745833,102810.0,102800.0,0.20578994]
[1746753291769,0.6735833,102810.0,102800.0,0.26448994]
[1746753291969,0.6745833,102810.0,102800.0,0.2684872]
[1746753293260,0.6437833,102810.0,102800.0,0.26852596]
[1746753293465,0.2829833,102810.0,102800.0,0.92563398]
[1746753293665,0.2829833,102810.0,102800.0,0.55027178]
[1746753293862,0.2829833,102810.0,102800.0,0.56483398]
[1746753294062,0.2829833,102810.0,102800.0,0.57186422]
[1746753294972,0.2829833,102810.0,102800.0,0.56483398]
[1746753295269,0.2829833,102810.0,102800.0,0.57197704]
[1746753295472,0.1955433,102810.0,102800.0,0.66924904]
[1746753295675,0.1955433,102810.0,102800.0,0.73197704]
[1746753295970,0.1955433,102810.0,102800.0,0.77197704]
[1746753296574,0.1955433,102810.0,102800.0,1.13277704]
[1746753299765,0.1955433,102810.0,102800.0,0.93277704]
[1746753300375,0.1955433,102810.0,102800.0,0.94399025]
[1746753300871,0.1955433,102810.0,102800.0,0.83520841]
[1746753301068,0.5563433,102810.0,102800.0,0.27669951]
[1746753301271,0.6172433,102810.0,102800.0,0.13541033]
[1746753302973,0.6497433,102810.0,102800.0,0.13541033]
[1746753304376,0.6497433,102810.0,102800.0,0.24419217]
[1746753304578,0.6497433,102810.0,102800.0,0.24387641]
[1746753304769,0.08744,102820.0,102800.0,0.24387641]
[1746753304970,0.55702184,102830.0,102810.0,0.0608]
[1746753305171,0.83896724,102830.0,102820.0,0.0306]
[1746753305380,0.83896724,102830.0,102820.0,0.05690047]
[1746753306673,0.7331854,102830.0,102820.0,0.05690047]
[1746753306876,0.84196724,102830.0,102820.0,0.05690047]
[1746753307778,0.84496724,102830.0,102820.0,0.05690047]
[1746753307978,0.94296724,102830.0,102820.0,0.05690047]
[1746753308480,0.4733454,102830.0,102820.0,0.05690047]
[1746753308870,0.58212724,102830.0,102820.0,0.05690047]
[1746753309271,0.8341454,102830.0,102820.0,0.05690047]